[Event "V Sunway Sitges Open 2018"]
[Site "Sitges"]
[Date "2018.12.21"]
[Round "8"]
[White "Minko, Olga"]
[Black "Prats Rodriguez, Juan Bosco"]
[Result "1-0"]
[ECO "B09"]
[WhiteElo "1737"]
[BlackElo "2018"]
[Annotator "NA"]
[PlyCount "67"]
[EventDate "2018.12.14"]
[EventType "swiss"]
[EventCountry "ESP"]
[SourceTitle "playchess.com"]
[Source "ChessBase"]
[SourceQuality "1"]
[TimeControl "40/5400+30:1800+30"]

1. e4 {[%emt 0:00:00]} d6 {[%emt 0:00:19]} 2. d4 {[%emt 0:00:00]} Nf6 {[%emt 0:00:06]} 3. Nc3 {[%emt 0:00:00]} g6 {[%emt 0:00:04]} 4. f4 {[%emt 0:00:12]} Bg7 {[%emt 0:00:04]} 5. Nf3 {[%emt 0:00:15]} O-O {[%emt 0:00:06]} 6. Bd3 {[%emt 0:01:10]} Nc6 {[%emt 0:00:07]} 7. e5 {[%emt 0:07:55]} dxe5 {[%emt 0:00:18]} 8. dxe5 {[%emt 0:00:10]} Nd5 {[%emt 0:00:29]} 9. O-O {[%emt 0:18:11]} Nxc3 {[%emt 0:00:16]} 10. bxc3 {[%emt 0:00:07]} Qd5 {[%emt 0:01:08]} 11. Be3 {[%emt 0:02:59]} Bg4 {[%emt 0:08:33]} 12. h3 {[%emt 0:00:32]} Bxf3 {[%emt 0:00:19]} 13. Rxf3 {[%emt 0:01:09]} f6 {[%emt 0:00:30]} 14. Qe2 {[%emt 0:13:43]} Qa5 {[%emt 0:00:29]} 15. Raf1 {[%emt 0:00:40]} Kh8 {[%emt 0:09:30]} 16. Rg3 {[%emt 0:02:29]} f5 {[%emt 0:03:12]} 17. h4 {[%emt 0:01:22]} Nxe5 {[%emt 0:04:13]} 18. fxe5 {[%emt 0:02:15]} Bxe5 {[%emt 0:00:59]} 19. Bd4 {[%emt 0:02:48]} Bxd4+ {[%emt 0:00:26]} 20. cxd4 {[%emt 0:00:08]} e5 {[%emt 0:00:43]} 21. h5 {[%emt 0:08:18]} Rg8 22. hxg6 {[%emt 0:07:41]} e4 {[%emt 0:02:52]} 23. Qh5 {[%emt 0:03:00]} Rg7 {[%emt 0:01:26]} 24. Bxe4 {[%emt 0:00:46]} Qb6 {[%emt 0:00:37]} 25. Qxf5 {[%emt 0:02:45]} Qxd4+ {[%emt 0:00:46]} 26. Kh1 {[%emt 0:00:42]} Re8 {[%emt 0:00:27]} 27. Qf8+ {[%emt 0:10:38]} Rg8 {[%emt 0:00:08]} 28. g7+ {[%emt 0:05:21]} Qxg7 {[%emt 0:00:05]} 29. Rxg7 {[%emt 0:00:31]} Rgxf8 {[%emt 0:00:08]} 30. Rxf8+ {[%emt 0:00:51]} Rxf8 {[%emt 0:00:02]} 31. Rxh7+ {[%emt 0:00:09]} Kg8 {[%emt 0:00:09]} 32. Rxc7 {[%emt 0:00:08]} Rf1+ {[%emt 0:00:12]} 33. Kh2 {[%emt 0:00:14]} Rb1 {[%emt 0:00:17]} 34. Bxb7 {[%emt 0:00:25]} 1-0

[Event "V Sunway Sitges Open 2018"]
[Site "Sitges"]
[Date "2018.12.21"]
[Round "8"]
[White "Henderson Franklin, Matthew"]
[Black "Chatton, Jean-Bernard"]
[Result "1/2-1/2"]
[ECO "B90"]
[WhiteElo "1584"]
[BlackElo "1643"]
[Annotator "NA"]
[PlyCount "53"]
[EventDate "2018.12.14"]
[EventType "swiss"]
[EventCountry "ESP"]
[SourceTitle "playchess.com"]
[Source "ChessBase"]
[SourceQuality "1"]
[TimeControl "40/5400+30:1800+30"]

1. e4 {[%emt 0:00:00]} c5 {[%emt 0:00:00]} 2. Nf3 d6 3. d4 {[%emt 0:01:03]} cxd4 {[%emt 0:00:17]} 4. Nxd4 {[%emt 0:00:07]} Nf6 {[%emt 0:00:08]} 5. Nc3 {[%emt 0:00:35]} a6 {[%emt 0:00:07]} 6. Be3 {[%emt 0:00:19]} e5 {[%emt 0:01:28]} 7. Nb3 {[%emt 0:00:38]} Be7 {[%emt 0:01:39]} 8. f3 {[%emt 0:03:35]} Be6 {[%emt 0:02:48]} 9. Qd2 {[%emt 0:01:42]} O-O {[%emt 0:02:10]} 10. g4 {[%emt 0:04:07]} h6 {[%emt 0:02:14]} 11. O-O-O {[%emt 0:07:44]} Nbd7 {[%emt 0:01:47]} 12. h4 {[%emt 0:12:30]} Nh7 {[%emt 0:11:07]} 13. g5 {[%emt 0:12:58]} h5 {[%emt 0:01:10]} 14. Be2 {[%emt 0:03:48]} g6 {[%emt 0:04:05]} 15. Nd5 {[%emt 0:07:04]} Bxd5 {[%emt 0:02:39]} 16. Qxd5 {[%emt 0:00:05]} Qc7 {[%emt 0:01:10]} 17. f4 {[%emt 0:03:40]} Rac8 {[%emt 0:00:34]} 18. Rd2 {[%emt 0:01:50]} exf4 {[%emt 0:01:09]} 19. Bxf4 {[%emt 0:01:59]} Ne5 {[%emt 0:00:32]} 20. Rhd1 {[%emt 0:12:26]} Rfd8 {[%emt 0:04:35]} 21. Kb1 {[%emt 0:04:34]} Nf8 {[%emt 0:00:29]} 22. Nd4 {[%emt 0:03:14]} b5 {[%emt 0:07:42]} 23. Nf3 {[%emt 0:03:28]} Nxf3 {[%emt 0:01:48]} 24. Bxf3 {[%emt 0:01:41]} Ne6 {[%emt 0:20:01]} 25. Be3 a5 26. Bxh5 gxh5 27. g6 1/2-1/2

[Event "V Sunway Sitges Open 2018"]
[Site "Sitges"]
[Date "2018.12.21"]
[Round "8"]
[White "Vidal Moll, Francesc"]
[Black "Barguer, Alexey"]
[Result "1/2-1/2"]
[ECO "A45"]
[WhiteElo "1526"]
[BlackElo "1435"]
[Annotator "NA"]
[PlyCount "61"]
[EventDate "2018.12.14"]
[EventType "swiss"]
[EventCountry "ESP"]
[SourceTitle "playchess.com"]
[Source "ChessBase"]
[SourceQuality "1"]
[TimeControl "40/5400+30:1800+30"]

1. d4 {[%emt 0:00:00]} Nf6 {[%emt 0:00:00]} 2. e3 {[%emt 0:00:00]} g6 {[%emt 0:00:00]} 3. Bd3 {[%emt 0:00:00]} Bg7 {[%emt 0:00:10]} 4. f4 {[%emt 0:00:06]} O-O {[%emt 0:00:40]} 5. Nf3 {[%emt 0:02:04]} d5 {[%emt 0:00:19]} 6. O-O {[%emt 0:00:27]} c5 {[%emt 0:00:13]} 7. c3 {[%emt 0:00:06]} Qc7 {[%emt 0:06:30]} 8. Ne5 {[%emt 0:00:38]} Nbd7 {[%emt 0:00:52]} 9. Nd2 {[%emt 0:00:37]} cxd4 {[%emt 0:04:56]} 10. exd4 {[%emt 0:00:16]} Qb6 {[%emt 0:02:07]} 11. Qf3 {[%emt 0:03:10]} Nxe5 {[%emt 0:02:02]} 12. fxe5 {[%emt 0:00:18]} Ng4 {[%emt 0:00:35]} 13. Kh1 {[%emt 0:00:47]} Qd8 {[%emt 0:05:38]} 14. h3 {[%emt 0:01:48]} Nh6 {[%emt 0:00:09]} 15. Qf4 {[%emt 0:03:36]} f6 {[%emt 0:05:53]} 16. exf6 {[%emt 0:02:03]} Rxf6 {[%emt 0:00:31]} 17. Qe3 {[%emt 0:00:58]} Rxf1+ {[%emt 0:00:32]} 18. Nxf1 {[%emt 0:00:08]} Qd6 {[%emt 0:02:57]} 19. Ng3 {[%emt 0:05:15]} Bd7 {[%emt 0:02:52]} 20. Bd2 {[%emt 0:01:19]} Rf8 {[%emt 0:00:10]} 21. Re1 {[%emt 0:05:10]} Nf5 {[%emt 0:05:09]} 22. Nxf5 {[%emt 0:00:28]} Bxf5 {[%emt 0:00:13]} 23. Bxf5 {[%emt 0:03:53]} Rxf5 {[%emt 0:00:16]} 24. Qe6+ {[%emt 0:00:49]} Qxe6 {[%emt 0:00:59]} 25. Rxe6 {[%emt 0:00:08]} Kf7 {[%emt 0:02:07]} 26. Re1 {[%emt 0:01:24]} e5 {[%emt 0:02:49]} 27. dxe5 {[%emt 0:00:38]} Bxe5 {[%emt 0:01:20]} 28. Kg1 {[%emt 0:00:45]} Bd6 {[%emt 0:01:24]} 29. Re2 {[%emt 0:06:14]} Bc5+ {[%emt 0:02:52]} 30. Be3 Bxe3+ 31. Rxe3 1/2-1/2

[Event "V Sunway Sitges Open 2018"]
[Site "Sitges"]
[Date "2018.12.21"]
[Round "8"]
[White "Tastambekov, Arsen"]
[Black "Jenny, Gerald"]
[Result "1/2-1/2"]
[ECO "B42"]
[WhiteElo "1271"]
[BlackElo "1807"]
[Annotator "NA"]
[PlyCount "80"]
[EventDate "2018.12.14"]
[EventType "swiss"]
[EventCountry "ESP"]
[SourceTitle "playchess.com"]
[Source "ChessBase"]
[SourceQuality "1"]
[TimeControl "40/5400+30:1800+30"]

1. e4 {[%emt 0:00:00]} c5 {[%emt 0:00:00]} 2. Nf3 {[%emt 0:00:00]} e6 {[%emt 0:00:00]} 3. d4 {[%emt 0:00:03]} cxd4 {[%emt 0:00:08]} 4. Nxd4 {[%emt 0:00:03]} a6 {[%emt 0:00:06]} 5. Bd3 {[%emt 0:00:43]} Nc6 {[%emt 0:00:10]} 6. Nb3 {[%emt 0:01:41]} Nf6 {[%emt 0:02:27]} 7. Be3 {[%emt 0:00:44]} d5 {[%emt 0:02:34]} 8. N1d2 {[%emt 0:03:06]} Bd6 {[%emt 0:12:59]} 9. O-O {[%emt 0:02:00]} e5 {[%emt 0:01:48]} 10. Bg5 {[%emt 0:02:00]} d4 {[%emt 0:04:32]} 11. a3 {[%emt 0:16:01]} h6 {[%emt 0:05:10]} 12. Bh4 {[%emt 0:01:35]} Qe7 {[%emt 0:03:38]} 13. Rc1 {[%emt 0:05:08]} g5 {[%emt 0:03:41]} 14. Bg3 {[%emt 0:00:41]} Bg4 {[%emt 0:01:16]} 15. f3 {[%emt 0:05:15]} Be6 {[%emt 0:02:19]} 16. Bc4 {[%emt 0:03:09]} Rd8 {[%emt 0:07:24]} 17. Bxe6 {[%emt 0:04:37]} Qxe6 {[%emt 0:00:28]} 18. Qe2 {[%emt 0:03:57]} Nh5 {[%emt 0:05:43]} 19. Nc4 {[%emt 0:10:18]} Ke7 {[%emt 0:11:20]} 20. Nxd6 {[%emt 0:08:17]} Qxd6 {[%emt 0:02:53]} 21. Rfd1 {[%emt 0:03:17]} Ng7 {[%emt 0:03:30]} 22. Rd3 {[%emt 0:07:29]} Ne6 {[%emt 0:01:06]} 23. Rcd1 {[%emt 0:02:34]} Qc7 {[%emt 0:02:14]} 24. c3 {[%emt 0:01:58]} dxc3 {[%emt 0:02:12]} 25. Rxc3 {[%emt 0:01:03]} Rxd1+ {[%emt 0:03:28]} 26. Qxd1 {[%emt 0:00:08]} Rd8 {[%emt 0:00:20]} 27. Qc2 {[%emt 0:00:35]} Qd6 {[%emt 0:01:33]} 28. h3 {[%emt 0:03:09]} f6 {[%emt 0:04:40]} 29. Bf2 {[%emt 0:00:36]} Qd1+ {[%emt 0:00:33]} 30. Kh2 {[%emt 0:01:47]} Qf1 {[%emt 0:00:32]} 31. Bc5+ {[%emt 0:04:18]} Kf7 {[%emt 0:01:05]} 32. Nd2 {[%emt 0:01:45]} Qe1 {[%emt 0:02:22]} 33. Be3 {[%emt 0:01:57]} h5 {[%emt 0:02:03]} 34. Rd3 {[%emt 0:01:51]} h4 {[%emt 0:01:58]} 35. Rxd8 {[%emt 0:01:32]} Ncxd8 {[%emt 0:01:31]} 36. Qc3 {[%emt 0:02:01]} Nc6 {[%emt 0:02:03]} 37. Qb3 {[%emt 0:00:45]} Qg3+ {[%emt 0:00:18]} 38. Kh1 {[%emt 0:00:22]} Qe1+ {[%emt 0:01:04]} 39. Kh2 {[%emt 0:00:23]} Qg3+ {[%emt 0:02:47]} 40. Kh1 {[%emt 0:00:00]} Qe1+ {[%emt 0:00:00]} 1/2-1/2

[Event "V Sunway Sitges Open 2018"]
[Site "Sitges"]
[Date "2018.12.22"]
[Round "9"]
[White "Walter Travella, German"]
[Black "Cemborain Oricain, Alfonso"]
[Result "1/2-1/2"]
[ECO "C47"]
[WhiteElo "1917"]
[BlackElo "1921"]
[Annotator "NA RC"]
[PlyCount "38"]
[EventDate "2018.12.14"]
[EventType "swiss"]
[EventCountry "ESP"]
[SourceTitle "playchess.com"]
[Source "ChessBase"]
[SourceQuality "1"]
[TimeControl "40/5400+30:1800+30"]

1. e4 {[%emt 0:00:00]} Nf6 {[%emt 0:00:00]} 2. Nc3 {[%emt 0:00:38]} e5 {[%emt 0:00:00]} 3. Nf3 {[%emt 0:00:19]} Nc6 {[%emt 0:00:04]} 4. g3 {[%emt 0:00:14]} Bc5 {[%emt 0:03:35]} 5. Bg2 {[%emt 0:00:29]} d6 {[%emt 0:02:30]} 6. O-O {[%emt 0:03:00]} O-O {[%emt 0:03:17]} 7. d3 {[%emt 0:00:34]} a6 {[%emt 0:00:44]} 8. h3 {[%emt 0:00:27]} h6 {[%emt 0:06:32]} 9. Kh2 {[%emt 0:01:44]} Nh7 {[%emt 0:03:44]} 10. Nh4 {[%emt 0:01:31]} Nd4 {[%emt 0:05:01]} 11. Be3 {[%emt 0:04:52]} ({White should play} 11. Nd5 $14) 11... Be6 {[%emt 0:05:24]} 12. Ne2 {[%emt 0:03:02]} Nxe2 {[%emt 0:04:53]} 13. Qxe2 {[%emt 0:03:16]} Bxe3 {[%emt 0:00:37]} 14. Qxe3 {[%emt 0:00:37]} Qe7 {[%emt 0:06:42]} 15. Qe1 $11 {[%emt 0:04:29]} g5 {[%emt 0:09:23]} 16. Nf5 {[%emt 0:03:20]} Qf6 {[%emt 0:03:24]} 17. g4 {[%emt 0:01:38]} Rfe8 {[%emt 0:00:45]} 18. Qc3 {[%emt 0:07:21]} Rac8 {[%emt 0:01:33]} 19. a4 Nf8 1/2-1/2

[Event "V Sunway Sitges Open 2018"]
[Site "Sitges"]
[Date "2018.12.22"]
[Round "9"]
[White "Palacios Pena, Gerardo"]
[Black "Varsha Ramesh"]
[Result "1/2-1/2"]
[ECO "A46"]
[WhiteElo "1810"]
[BlackElo "1541"]
[Annotator "NA RC"]
[PlyCount "149"]
[EventDate "2018.12.14"]
[EventType "swiss"]
[EventCountry "ESP"]
[SourceTitle "playchess.com"]
[Source "ChessBase"]
[SourceQuality "1"]
[TimeControl "40/5400+30:1800+30"]

1. d4 {[%emt 0:06:53]} Nf6 {[%emt 0:00:00]} 2. Nf3 {[%emt 0:00:10]} e6 {[%emt 0:00:00]} 3. Bf4 {[%emt 0:00:07]} d5 {[%emt 0:00:42]} 4. e3 {[%emt 0:00:13]} Be7 {[%emt 0:00:16]} 5. h3 {[%emt 0:00:19]} b6 {[%emt 0:01:57] D02: 1 d4 d5 2 Nf3 sidelines, including 2...Nf6 3 g3 and 2...Nf6 3 Bf4} (5... O-O 6. Nbd2 c5 7. c3 b6 8. Bd3 Ba6 9. Bxa6 Nxa6 10. O-O Nb8 11. Qe2 Nc6 12. Rad1 cxd4 13. exd4 Nd7 14. Rfe1 Re8 15. Bg3 a6 16. a4 {1-0 (39) Alekseenko,K (2561)-Eliseev,U (2602) Loo 2016}) 6. Bb5+ {[%emt 0:00:35]} c6 {[%emt 0:02:11]} 7. Bd3 {[%emt 0:05:00]} Bb7 $146 {[%emt 0:00:41]} ({Predecessor:} 7... O-O 8. O-O Ba6 9. Ne5 Bxd3 10. cxd3 Nfd7 11. Nd2 Nxe5 12. Bxe5 Nd7 13. Bg3 {½-½ (42) Palacios Pena,G (1975)-Teran Pereda,L (1930) Benidorm 2007}) 8. O-O {[%emt 0:00:13]} O-O {[%emt 0:00:05]} 9. c4 {[%emt 0:00:07]} c5 {[%emt 0:01:25]} 10. Nc3 {[%emt 0:00:19]} Nc6 {[%emt 0:01:07]} 11. cxd5 {[%emt 0:00:48]} exd5 {[%emt 0:00:57]} 12. Rc1 {[%emt 0:05:05]} Qd7 {[%emt 0:03:15]} 13. Ne5 {[%emt 0:00:27]} Qe6 {[%emt 0:01:09]} 14. Nxc6 {[%emt 0:04:52]} Bxc6 {[%emt 0:02:05]} 15. Qc2 {[%emt 0:00:15]} Qd7 {[%emt 0:03:18]} 16. Be5 {[%emt 0:01:03]} h6 {[%emt 0:01:15]} 17. Rfd1 {[%emt 0:02:56]} c4 {[%emt 0:01:38]} 18. Be2 {[%emt 0:00:40]} b5 {[%emt 0:01:40]} 19. Bf3 {[%emt 0:00:16]} Rfd8 {[%emt 0:07:42]} 20. Ne2 {[%emt 0:01:28]} Qb7 {[%emt 0:04:52]} 21. Ng3 {[%emt 0:00:52]} Nd7 {[%emt 0:02:10]} 22. Nf5 {[%emt 0:00:17]} Nxe5 {[%emt 0:00:49]} 23. dxe5 {[%emt 0:00:08]} Bf8 {[%emt 0:04:01]} 24. Nd4 {[%emt 0:00:19]} Rd7 {[%emt 0:04:39]} 25. e6 {[%emt 0:00:20]} fxe6 {[%emt 0:01:10]} 26. Nxe6 {[%emt 0:00:29]} Rd6 {[%emt 0:00:19]} 27. Nd4 {[%emt 0:00:32]} Rad8 {[%emt 0:01:37]} 28. b3 Qa6 {[%emt 0:02:41]} 29. bxc4 {[%emt 0:01:43]} bxc4 {[%emt 0:00:53]} 30. Nxc6 {[%emt 0:02:51]} Qxc6 {[%emt 0:00:37]} 31. Rd4 {[%emt 0:00:47]} Be7 {[%emt 0:02:00]} 32. Qf5 {[%emt 0:00:42]} Bf6 {[%emt 0:09:44] [#]} (32... c3 $11 {remains equal.}) 33. Rdxc4 $3 {[%emt 0:06:54] Pin} Qxc4 {[%emt 0:00:24]} 34. Rxc4 {[%emt 0:00:10]} dxc4 {[%emt 0:00:05]} 35. Be4 {[%emt 0:00:07]} c3 {[%emt 0:00:28]} 36. Qh7+ {[%emt 0:00:42]} Kf8 {[%emt 0:00:04]} 37. Bc2 {[%emt 0:02:29]} Rb6 {[%emt 0:06:46]} 38. Bb3 {[%emt 0:03:05]} (38. Qe4 $16) 38... Rxb3 {[%emt 0:04:16]} 39. axb3 {[%emt 0:00:14]} Kf7 $2 {[%emt 0:00:57] [#]} ({Black should try} 39... Rd2 $11 40. Qe4 Kg8 41. Qc4+ Kh7) 40. Qf5 $2 {[%emt 0:00:00]} ({Only move:} 40. Kf1 $1 $16) 40... Rd2 {[%emt 0:00:00]} 41. Kh2 {[%emt 0:06:56]} c2 {[%emt 0:06:28]} 42. Qc5 {[%emt 0:07:26]} Rxf2 {[%emt 0:06:56]} 43. Kg3 {[%emt 0:00:38]} Rd2 {[%emt 0:02:30]} 44. Qxa7+ {[%emt 0:00:08]} Kg6 {[%emt 0:00:42]} 45. Qc5 {[%emt 0:00:15]} Bb2 {[%emt 0:04:59]} 46. Qc6+ $1 {[%emt 0:00:35]} Kf7 {[%emt 0:03:21]} (46... Kh7 $5 47. Qe4+ $8 Kh8 48. Qe8+ Kh7 49. Qe4+ Kh8 50. Qe8+ Kh7 51. Qe4+ $11) 47. Qc4+ {[%emt 0:00:55]} Ke8 {[%emt 0:02:04]} 48. Qc8+ {[%emt 0:02:19]} Ke7 {[%emt 0:00:17]} 49. Qc7+ {[%emt 0:00:15]} Ke6 {[%emt 0:00:51]} 50. Qc6+ {[%emt 0:00:17]} Ke5 {[%emt 0:02:27]} 51. Qc7+ {[%emt 0:06:34]} Ke4 {[%emt 0:00:29]} 52. Qf4+ {[%emt 0:05:47]} Kd5 {[%emt 0:00:24]} 53. e4+ $2 {[%emt 0:00:27] [#]} (53. Qc4+ $11 Kd6 54. Qb4+ Ke5 55. Qc5+ Ke4 56. Qc6+ Kd3 57. Qc4+ Kxe3 58. Qe6+ Kd4 59. Qg4+ Kc5 60. Qc8+ Kb6 61. Qb8+ Kc6 62. Qc8+ Kd6 63. Qf8+ Kd7 64. Qf5+ Ke8 65. Qc8+ Ke7 66. Qc7+ Kf6 67. Qf4+ Kg6 68. Qe4+ Kg5 69. Qg4+ Kf6 70. Qf4+ Kg6 71. Qe4+ Kf7 72. Qc4+ Kg6 73. Qe4+) 53... Kc6 $2 {[%emt 0:01:58]} (53... Ke6 $1 $19 54. Qxd2 c1=Q 55. Qxc1 Bxc1) 54. Qxd2 c1=Q $11 {[%emt 0:00:38]} 55. Qd5+ {[%emt 0:04:07]} Kb6 {[%emt 0:00:35]} 56. Qd6+ {[%emt 0:02:08]} Qc6 {[%emt 0:00:20]} 57. Qxc6+ {[%emt 0:00:42]} Kxc6 {[%emt 0:00:30]} 58. Kf4 {[%emt 0:00:02]} Kd6 {[%emt 0:00:00]} 59. Kf5 {[%emt 0:00:11]} Bc3 {[%emt 0:01:43]} 60. h4 Bf6 {[%emt 0:01:08]} 61. g3 {[%emt 0:01:16]} Be5 {[%emt 0:02:57]} 62. g4 Bg3 {[%emt 0:01:37]} 63. Kg6 {[%emt 0:01:21]} Bxh4 {[%emt 0:00:44]} 64. Kxg7 Bg5 65. b4 {[%emt 0:02:30]} Ke5 {[%emt 0:01:18]} 66. b5 {[%emt 0:00:13]} Kxe4 {[%emt 0:00:06]} 67. Kg6 {[%emt 0:00:05]} Kf4 {[%emt 0:01:18]} 68. Kh5 Ke4 {[%emt 0:00:25]} 69. b6 {[%emt 0:00:17]} Bf4 {[%emt 0:00:20]} 70. Kh4 {[%emt 0:00:30]} Kd5 {[%emt 0:00:18]} 71. b7 {[%emt 0:00:06]} Kc6 {[%emt 0:00:19]} 72. Kh3 {[%emt 0:00:07]} Kxb7 {[%emt 0:00:07]} 73. Kg2 {[%emt 0:00:02]} Kc6 {[%emt 0:00:07]} 74. Kf3 {[%emt 0:00:07]} Bg5 {[%emt 0:00:03]} 75. Ke4 1/2-1/2

[Event "V Sunway Sitges Open 2018"]
[Site "Sitges"]
[Date "2018.12.22"]
[Round "9"]
[White "Perez Bolanos, David"]
[Black "Rocher Gonzalez, Vicenc"]
[Result "1-0"]
[ECO "D10"]
[WhiteElo "1747"]
[BlackElo "1798"]
[Annotator "NA RC"]
[PlyCount "99"]
[EventDate "2018.12.14"]
[EventType "swiss"]
[EventCountry "ESP"]
[SourceTitle "playchess.com"]
[Source "ChessBase"]
[SourceQuality "1"]
[TimeControl "40/5400+30:1800+30"]

1. d4 {[%emt 0:00:00]} d5 {[%emt 0:00:16]} 2. c4 {[%emt 0:00:00]} c6 {[%emt 0:00:35]} 3. Nc3 {[%emt 0:00:38]} Nf6 {[%emt 0:00:30]} 4. e3 {[%emt 0:01:06]} a6 {[%emt 0:04:06]} 5. Nf3 {[%emt 0:01:27]} Bg4 {[%emt 0:02:22]} 6. h3 {[%emt 0:02:25]} Bh5 {[%emt 0:01:37]} 7. g4 {[%emt 0:03:49]} Bg6 {[%emt 0:00:57]} 8. Ne5 {[%emt 0:01:11]} e6 {[%emt 0:03:18]} 9. h4 {[%emt 0:07:24]} h5 {[%emt 0:08:29]} 10. Nxg6 {[%emt 0:00:47]} fxg6 {[%emt 0:00:16]} 11. g5 {[%emt 0:00:08]} Ne4 {[%emt 0:05:16]} 12. Nxe4 {[%emt 0:01:19]} dxe4 {[%emt 0:00:09]} 13. Bg2 {[%emt 0:01:30]} Bb4+ {[%emt 0:03:46]} 14. Bd2 {[%emt 0:01:17]} Qa5 {[%emt 0:01:12]} 15. Bxe4 {[%emt 0:01:13]} O-O {[%emt 0:01:48]} 16. Bxg6 {[%emt 0:05:24]} Bxd2+ {[%emt 0:02:15]} 17. Qxd2 {[%emt 0:00:05]} Qxd2+ {[%emt 0:00:21]} 18. Kxd2 {[%emt 0:00:04]} Rxf2+ {[%emt 0:00:45]} 19. Kc3 {[%emt 0:00:04]} Nd7 {[%emt 0:01:18]} 20. Raf1 {[%emt 0:00:24]} Raf8 {[%emt 0:00:16]} 21. Rxf2 {[%emt 0:00:05]} Rxf2 {[%emt 0:00:20]} 22. Bxh5 {[%emt 0:01:27]} e5 {[%emt 0:01:39]} 23. Rh3 {[%emt 0:01:14]} c5 {[%emt 0:02:50]} 24. d5 {[%emt 0:02:55]} b5 {[%emt 0:01:31]} 25. Rf3 {[%emt 0:00:31]} b4+ {[%emt 0:01:52]} 26. Kb3 {[%emt 0:00:23]} Rxf3 {[%emt 0:03:33]} 27. Bxf3 {[%emt 0:00:05]} Nb6 {[%emt 0:00:34]} 28. Be2 {[%emt 0:00:29]} Kf7 {[%emt 0:01:01]} 29. Kc2 {[%emt 0:00:04]} Kg6 {[%emt 0:00:34]} 30. e4 {[%emt 0:01:03]} Nc8 {[%emt 0:03:33]} 31. Bf3 {[%emt 0:00:26]} Nd6 {[%emt 0:01:33]} 32. Kd3 {[%emt 0:00:07]} a5 {[%emt 0:01:46]} 33. b3 {[%emt 0:00:11]} Nf7 {[%emt 0:04:08]} 34. Ke3 {[%emt 0:00:11]} Nd6 {[%emt 0:00:26]} 35. Kf2 {[%emt 0:00:06]} a4 {[%emt 0:02:10]} 36. Kg3 {[%emt 0:02:23]} a3 {[%emt 0:00:29]} 37. Kg4 {[%emt 0:04:27]} Nxc4 {[%emt 0:02:17]} 38. h5+ {[%emt 0:00:03]} Kf7 {[%emt 0:01:41]} 39. Kf5 {[%emt 0:00:21]} Ne3+ {[%emt 0:05:33]} 40. Kxe5 {[%emt 0:00:00]} c4 {[%emt 0:00:00]} 41. h6 {[%emt 0:05:14]} g6 {[%emt 0:03:12]} 42. h7 {[%emt 0:00:20]} Kg7 {[%emt 0:03:30]} 43. d6 {[%emt 0:00:10]} cxb3 {[%emt 0:00:42]} 44. d7 {[%emt 0:00:17]} bxa2 {[%emt 0:07:05]} 45. h8=Q+ {[%emt 0:01:09]} Kxh8 {[%emt 0:00:17]} 46. d8=Q+ {[%emt 0:00:04]} Kh7 {[%emt 0:01:55]} 47. Qe7+ {[%emt 0:00:06]} Kh8 {[%emt 0:00:33]} 48. Qf8+ {[%emt 0:00:06]} Kh7 {[%emt 0:00:21]} 49. Qf7+ {[%emt 0:00:04]} Kh8 {[%emt 0:00:23]} 50. Qxa2 {[%emt 0:00:04]} 1-0

[Event "V Sunway Sitges Open 2018"]
[Site "Sitges"]
[Date "2018.12.22"]
[Round "9"]
[White "Minko, Uliana"]
[Black "Vidal Moll, Francesc"]
[Result "0-1"]
[ECO "A13"]
[WhiteElo "1303"]
[BlackElo "1526"]
[Annotator "NA RC"]
[PlyCount "116"]
[EventDate "2018.12.14"]
[EventType "swiss"]
[EventCountry "ESP"]
[SourceTitle "playchess.com"]
[Source "ChessBase"]
[SourceQuality "1"]
[TimeControl "40/5400+30:1800+30"]

1. c4 {[%emt 0:00:00]} e6 {[%emt 0:00:00]} 2. g3 {[%emt 0:00:00]} f5 {[%emt 0:00:00]} 3. Bg2 {[%emt 0:00:36]} Nf6 {[%emt 0:00:08]} 4. Nc3 {[%emt 0:00:44]} c6 {[%emt 0:00:26]} 5. Nf3 {[%emt 0:01:45]} d5 {[%emt 0:00:16]} 6. b3 {[%emt 0:01:26]} Bd6 {[%emt 0:00:44]} 7. d4 {[%emt 0:00:37]} Nbd7 {[%emt 0:01:34]} 8. c5 {[%emt 0:00:24]} Bc7 {[%emt 0:00:49]} 9. b4 {[%emt 0:00:52]} e5 {[%emt 0:01:47]} 10. e3 {[%emt 0:01:05]} e4 {[%emt 0:03:58]} 11. Nh4 {[%emt 0:01:26]} Nb8 {[%emt 0:02:57]} 12. Bh3 {[%emt 0:00:42]} g6 {[%emt 0:02:34]} 13. O-O {[%emt 0:00:36]} Qe7 {[%emt 0:01:52]} 14. Ng2 {[%emt 0:00:32]} Nbd7 {[%emt 0:02:27]} 15. f4 {[%emt 0:01:26]} Nf8 {[%emt 0:05:20]} 16. Ne1 {[%emt 0:00:30]} Bd7 {[%emt 0:00:29]} 17. a4 {[%emt 0:00:20]} Ne6 {[%emt 0:00:40]} 18. Nc2 {[%emt 0:00:42]} Kf7 {[%emt 0:01:25]} 19. Rb1 {[%emt 0:00:46]} g5 {[%emt 0:01:35]} 20. b5 {[%emt 0:01:54]} gxf4 {[%emt 0:01:52]} 21. exf4 {[%emt 0:00:28]} Rag8 {[%emt 0:01:50]} 22. Rf2 {[%emt 0:02:20]} Ng4 {[%emt 0:09:42]} 23. Bxg4 {[%emt 0:01:01]} Rxg4 {[%emt 0:00:19]} 24. Ne3 {[%emt 0:00:30]} Rg6 {[%emt 0:11:14]} 25. Nxf5 {[%emt 0:00:34]} Qf6 {[%emt 0:00:16]} 26. Qh5 {[%emt 0:12:20]} Nxd4 {[%emt 0:09:43]} 27. Nxd4 {[%emt 0:00:47]} Qxd4 {[%emt 0:00:09]} 28. Bb2 {[%emt 0:00:23]} Bg4 {[%emt 0:04:46]} 29. Qh4 {[%emt 0:08:19]} Bd8 {[%emt 0:01:17]} 30. Ne2 {[%emt 0:00:33]} Qxc5 {[%emt 0:02:11]} 31. Bxh8 {[%emt 0:01:42]} Bxh4 {[%emt 0:00:06]} 32. Bd4 {[%emt 0:00:16]} Qd6 {[%emt 0:03:12]} 33. Be5 {[%emt 0:03:57]} Qd7 {[%emt 0:01:13]} 34. bxc6 {[%emt 0:06:30]} bxc6 {[%emt 0:00:39]} 35. Nd4 {[%emt 0:00:56]} Be7 {[%emt 0:01:08]} 36. Kf1 {[%emt 0:04:52]} Rg8 {[%emt 0:01:05]} 37. Rfb2 {[%emt 0:01:40]} Rd8 {[%emt 0:05:03]} 38. Rb7 {[%emt 0:00:38]} Qe8 {[%emt 0:00:56]} 39. f5 {[%emt 0:03:49]} Rd7 {[%emt 0:05:54]} 40. Rb8 {[%emt 0:00:00]} Bd8 {[%emt 0:00:00]} 41. Nxc6 {[%emt 0:14:16]} Bxf5 {[%emt 0:02:13]} 42. Bf4 Kg7 {[%emt 0:08:28]} 43. Ne5 {[%emt 0:03:22]} Re7 {[%emt 0:11:22]} 44. R8b7 {[%emt 0:04:48]} Bb6 {[%emt 0:02:19]} 45. Rxe7+ {[%emt 0:00:37]} Qxe7 {[%emt 0:00:31]} 46. Rb5 {[%emt 0:01:06]} Be6 {[%emt 0:04:35]} 47. a5 {[%emt 0:01:02]} Bd8 {[%emt 0:01:09]} 48. Be3 {[%emt 0:03:34]} Kf6 {[%emt 0:04:38]} 49. Bd4 {[%emt 0:00:59]} Kg5 {[%emt 0:02:56]} 50. h4+ {[%emt 0:03:45]} Kh5 {[%emt 0:00:41]} 51. a6 {[%emt 0:02:42]} Qf8+ {[%emt 0:00:28]} 52. Ke2 {[%emt 0:01:49]} Qa3 {[%emt 0:02:52]} 53. Rb7 {[%emt 0:00:59]} Bg4+ {[%emt 0:01:33]} 54. Kf2 {[%emt 0:01:36]} Qa2+ {[%emt 0:00:39]} 55. Bb2 {[%emt 0:00:54]} Bb6+ {[%emt 0:02:34]} 56. Ke1 {[%emt 0:02:39]} Qb1+ {[%emt 0:00:48]} 57. Kd2 {[%emt 0:01:10]} Qxb2+ {[%emt 0:00:08]} 58. Ke1 {[%emt 0:00:17]} Qe2# {[%emt 0:00:58]} 0-1